bitfinex-derivatives/quotes_ETHF0:USTF0_20250314
["timestamp","ask_amount","ask_price","bid_price","bid_amount"]
[1741954723969,2.301,1904.9,1904.8,1.05006]
[1741954724167,2.41375001,1905.0,1904.9,1.05]
[1741954724876,1.36378001,1905.0,1904.9,1.05]
[1741954725083,1.36378001,1905.0,1904.9,2.3949]
[1741954725583,0.00788001,1905.0,1904.9,2.3949]
[1741954727884,0.00788001,1905.0,1904.9,3.7752]
[1741954732481,5.956,1905.4,1905.3,1.04978]
[1741954732681,1.3523,1905.4,1905.3,1.04978]
[1741954732882,2.40203,1905.4,1905.3,1.04978]
[1741954733277,1.3523,1905.4,1905.3,1.4575]
[1741954733483,1.04981,1905.3,1905.2,1.04981]
[1741954733788,1.04981,1905.3,1905.2,1.05769001]
[1741954733982,2.39111,1905.3,1905.2,1.05769001]
[1741954734385,1.3413,1905.3,1905.2,1.05769001]
[1741954734584,2.39108,1905.3,1905.2,1.05769001]
[1741954734786,2.39108,1905.3,1905.2,0.00788001]
[1741954735080,5.59888,1905.3,1905.2,0.00788001]
[1741954736788,2.39108,1905.3,1905.2,1.05772001]
[1741954736989,2.39108,1905.3,1905.2,0.00788001]
[1741954737494,2.39108,1905.3,1905.2,1.05772001]
[1741954739890,1.3413,1905.3,1905.2,1.05772001]
[1741954740393,2.39108,1905.3,1905.2,1.05772001]
[1741954740588,1.3413,1905.3,1905.2,1.05772001]
[1741954743495,2.39108,1905.3,1905.2,1.05772001]
[1741954743792,1.3413,1905.3,1905.2,1.05772001]
[1741954744996,2.39108,1905.3,1905.2,1.05772001]
[1741954745197,2.39108,1905.3,1905.2,1.76532001]
[1741954746091,1.3413,1905.3,1905.2,1.76532001]
[1741954746294,2.39108,1905.3,1905.2,1.05772001]
[1741954746503,2.39108,1905.3,1905.2,0.00788001]
[1741954746797,5.59888,1905.3,1905.2,0.00788001]
[1741954748698,5.59888,1905.3,1905.2,1.05772001]
[1741954748899,2.39108,1905.3,1905.2,1.05772001]
[1741954749301,2.39108,1905.3,1905.2,3.20132001]
[1741954749501,1.3413,1905.3,1905.2,3.20132001]
[1741954749895,2.39108,1905.3,1905.2,3.20132001]
[1741954750902,1.3413,1905.3,1905.2,3.20132001]
[1741954751105,2.39108,1905.3,1905.2,3.20132001]
[1741954752105,1.3413,1905.3,1905.2,3.20132001]
[1741954752306,4.68351636,1905.5,1905.4,1.04973]
[1741954752506,4.02560001,1905.5,1905.4,1.04973]
[1741954753099,3.34260001,1905.5,1905.4,1.04973]
[1741954753709,4.69600001,1905.5,1905.4,1.04973]
[1741954754205,3.64628001,1905.5,1905.3,1.4009]
[1741954754406,2.47503,1905.4,1905.3,2.45064]
[1741954755700,2.47503,1905.4,1905.3,1.4009]
[1741954756205,4.7194655,1905.4,1905.2,0.00788001]
[1741954756406,3.79788,1905.3,1905.2,0.00788001]
[1741954760105,3.79788,1905.3,1905.2,1.32268001]
[1741954760814,3.79788,1905.3,1905.2,0.00788001]
[1741954762516,3.79788,1905.3,1905.2,1.38148001]
[1741954762714,3.14058,1905.3,1905.2,2.43132001]
[1741954762911,3.14058,1905.3,1905.2,1.38148001]
[1741954764320,3.14058,1905.3,1905.2,2.43132001]
[1741954764512,2.47508,1905.3,1905.2,1.38148001]
[1741954764717,2.47508,1905.3,1905.2,2.43132001]
[1741954764919,1.4253,1905.3,1905.2,2.43132001]
[1741954765111,0.66629019,1905.5,1905.2,1.38148001]
[1741954765418,2.44946,1905.4,1905.3,3.84384]
[1741954766120,1.3997,1905.4,1905.3,3.84384]
[1741954766717,2.44943,1905.4,1905.3,3.84384]
[1741954769916,2.44943,1905.4,1905.3,2.1234]
[1741954770116,5.65723,1905.4,1905.3,2.1234]
[1741954770822,2.44943,1905.4,1905.3,3.17318]
[1741954771017,2.44943,1905.4,1905.3,2.1234]
[1741954772518,2.44943,1905.4,1905.3,3.17318]
[1741954772720,2.44943,1905.4,1905.3,2.1234]
[1741954773529,5.65723,1905.4,1905.3,2.1234]
[1741954773723,5.65723,1905.4,1905.3,3.17318]
[1741954774224,2.44943,1905.4,1905.3,3.17318]
[1741954775927,1.04973,1905.4,1905.3,3.17318]
[1741954776620,0.00788001,1905.5,1905.4,1.04973]
[1741954776826,0.65892176,1905.9,1905.4,3.17063]
[1741954777019,1.4023,1905.9,1905.8,1.04951]
[1741954777221,1.04942,1906.0,1905.9,1.04942]
[1741954777918,2.45172,1906.0,1905.9,1.04942]
[1741954778723,0.66680177,1906.1,1906.0,1.0494]
[1741954778920,2.39835,1906.0,1905.8,1.4051]
[1741954779117,2.39835,1906.0,1905.9,1.347]
[1741954779325,5.60615,1906.0,1905.9,1.347]
[1741954780531,6.29895,1906.0,1905.9,1.347]
[1741954781226,3.09115,1906.0,1905.9,2.39645]
[1741954781530,2.39835,1906.0,1905.9,1.347]
[1741954782027,1.3489,1906.0,1905.9,1.347]
[1741954782226,5.6061,1906.0,1905.9,1.347]
[1741954782724,2.3983,1906.0,1905.9,1.347]
[1741954783128,1.04951,1905.8,1905.7,1.3959]
[1741954783430,1.04951,1905.8,1905.7,1.3661]
[1741954783823,2.37741,1905.8,1905.7,1.3661]
[1741954784228,1.3279,1905.8,1905.7,1.3661]
[1741954784428,2.37741,1905.8,1905.7,2.41566]
[1741954785834,1.04948,1905.9,1905.7,1.3661]
[1741954786027,1.04948,1905.9,1905.8,3.06231]
[1741954786426,1.04948,1905.9,1905.8,2.0128]
[1741954786825,1.04948,1905.9,1905.8,2.7124]
[1741954787131,2.41478,1905.9,1905.8,2.7124]
[1741954788237,1.04942,1906.0,1905.9,1.0494]
[1741954788428,2.47532,1906.0,1905.9,2.4406]
[1741954789331,2.4753,1906.0,1905.9,2.4406]
[1741954789536,1.4259,1906.0,1905.9,2.4406]
[1741954789731,0.00788001,1906.1,1906.0,1.0494]
[1741954789933,1.43378001,1906.1,1906.0,1.0494]
[1741954790429,0.00788001,1906.1,1906.0,1.0494]
[1741954790833,1.05722001,1906.1,1906.0,1.0494]
[1741954791440,2.49602001,1906.1,1906.0,1.0494]
[1741954794039,0.00788001,1906.1,1906.0,1.0494]
[1741954794337,1.05722001,1906.1,1906.0,1.0494]
[1741954795435,0.00788001,1906.1,1906.0,1.0494]
[1741954795642,3.2078,1906.4,1906.0,4.2572]
[1741954795828,5.956,1906.7,1906.0,4.2572]
[1741954795829,1.4158,1906.6,1906.1,6.0096]
[1741954796138,1.04917,1906.5,1906.4,1.04914]
[1741954796435,1.04918,1906.4,1906.3,2.47318]
[1741954796638,2.46498,1906.4,1906.3,2.47318]
[1741954798337,2.46498,1906.4,1906.3,2.47323]
[1741954799833,2.46498,1906.4,1906.3,1.424]
[1741954800134,1.4158,1906.4,1906.3,2.47323]
[1741954800540,2.46498,1906.4,1906.3,2.47323]
[1741954800739,1.4158,1906.4,1906.3,2.47323]
[1741954801141,3.2078,1906.6,1906.3,1.424]
[1741954801343,1.4549,1906.5,1906.4,2.1266]
[1741954801546,1.4549,1906.5,1906.4,3.17578]
[1741954801736,2.50402,1906.5,1906.4,3.17578]
[1741954802043,1.4549,1906.5,1906.4,3.17578]
[1741954802247,2.50402,1906.5,1906.4,3.17578]
[1741954803843,1.4549,1906.5,1906.4,3.17578]
[1741954804145,0.713,1906.7,1906.4,3.17578]
[1741954804349,4.04504,1906.7,1906.6,1.04907]
[1741954805340,1.76204,1906.7,1906.6,1.04907]
[1741954805540,3.15954,1906.7,1906.6,1.04907]
[1741954805740,1.3975,1906.7,1906.6,1.04907]
[1741954806743,2.283,1907.0,1906.5,4.6526]
[1741954806951,3.33189,1907.0,1906.9,1.04886]
[1741954807243,5.57708669,1907.0,1906.6,2.62267]
[1741954807445,1.04894,1906.9,1906.8,1.04892]
[1741954808151,3.2078,1907.2,1906.8,1.3486]
[1741954808344,4.5935,1907.0,1906.9,1.04885]
[1741954808648,1.3857,1907.0,1906.9,1.04885]
[1741954808945,2.43455,1907.0,1906.9,1.04885]
[1741954809648,0.7243,1907.2,1907.1,1.04879]
[1741954809851,3.2078,1907.9,1907.6,1.0485]
[1741954809852,1.04849,1907.7,1907.6,1.0485]
[1741954810050,1.04853,1907.6,1907.5,1.04854]
[1741954810238,3.2078,1908.0,1907.5,1.3508]
[1741954810446,1.13463622,1907.9,1907.7,1.04843]
[1741954810646,1.04839,1907.9,1907.8,1.3508]
[1741954810848,1.1346327,1907.9,1907.8,1.3508]
[1741954811145,1.13463196,1907.9,1907.8,1.3508]
[1741954811345,1.04839,1907.9,1907.8,1.3508]
[1741954812453,1.04835,1907.9,1907.8,2.3992]
[1741954812839,1.04835,1907.9,1907.8,1.3508]
[1741954813048,2.39695,1907.9,1907.8,1.3508]
[1741954813745,2.39695,1907.9,1907.8,2.39921]
[1741954813746,1.3486,1907.9,1907.8,2.39921]
[1741954813951,2.39695,1907.9,1907.8,1.3508]
[1741954815047,1.3486,1907.9,1907.8,2.39921]
[1741954815250,1.04831,1908.0,1907.9,1.04835]
[1741954815454,2.36631,1908.0,1907.9,1.3999]
[1741954815657,1.318,1908.0,1907.9,2.44825]
[1741954816042,6.1744,1908.2,1907.9,1.3999]
[1741954816352,3.2078,1908.2,1908.0,1.3999]
[1741954816551,2.36624,1908.1,1908.0,2.4482]
[1741954816749,1.318,1908.1,1908.0,2.4482]
[1741954817542,3.2078,1908.2,1908.0,1.3999]
[1741954817749,4.25592,1908.4,1908.2,1.04817]
[1741954817955,5.57392,1908.4,1908.3,1.3999]
[1741954818154,5.66013845,1908.4,1908.3,1.3999]
[1741954820548,5.57392,1908.4,1908.3,1.3999]
[1741954821252,5.66013765,1908.4,1908.3,1.3999]
[1741954821447,5.57392,1908.4,1908.3,1.3999]
[1741954821951,6.23992,1908.4,1908.3,1.3999]
[1741954822151,6.32613907,1908.4,1908.3,1.3999]
[1741954822351,6.23992,1908.4,1908.3,1.3999]
[1741954822551,3.2078,1908.6,1908.3,1.3999]
[1741954822758,1.13424867,1908.5,1908.3,2.44799]
[1741954822953,1.04803,1908.5,1908.4,2.38108]
[1741954823151,2.4055,1908.6,1908.5,1.04802]
[1741954823349,2.4055,1908.6,1908.5,1.333]
[1741954823350,1.3575,1908.6,1908.5,1.333]
[1741954823558,3.2078,1908.8,1908.6,1.04793]
[1741954823854,4.25566,1908.8,1908.7,1.333]
[1741954826056,1.04802,1908.5,1908.4,1.39838001]
[1741954826255,1.04802,1908.5,1908.4,0.00788001]
[1741954827547,3.2078,1908.6,1908.5,1.04802]
[1741954827761,4.25577,1908.6,1908.5,3.09382]
[1741954828059,1.04791,1908.7,1908.5,2.7607]
[1741954828264,1.04791,1908.7,1908.6,2.38607]
[1741954828955,1.04791,1908.7,1908.6,1.3381]
[1741954830353,4.25571,1908.7,1908.6,1.3381]
[1741954832256,3.2078,1908.7,1908.4,0.00788001]
[1741954832560,1.04841,1907.8,1907.7,1.04843]
[1741954832748,1.0483,1908.0,1907.9,1.3291]
[1741954832950,1.04846,1907.7,1907.6,0.6797]
[1741954833149,1.04846,1907.7,1907.6,1.3291]
[1741954833458,2.288,1908.0,1907.6,1.3291]
[1741954833651,2.288,1908.0,1907.7,0.6797]
[1741954833652,0.00781051,1907.8,1907.7,0.6797]
[1741954833852,0.00781051,1907.8,1907.7,1.72816]
[1741954836762,3.2078,1908.2,1907.8,2.62098]
[1741954836956,2.293,1908.5,1908.3,1.04813]
[1741954836957,3.2078,1908.4,1908.3,1.04813]
[1741954838370,4.25581,1908.6,1908.5,1.04802]
[1741954838561,4.25577,1908.6,1908.5,1.04802]
[1741954839065,0.6639,1908.7,1908.5,1.04802]
[1741954839266,1.04797,1908.6,1908.5,1.04802]
[1741954839455,1.04793,1908.7,1908.6,1.04795]
[1741954840065,5.61023,1908.7,1908.6,1.04795]
[1741954840370,3.3419,1908.8,1908.7,1.04791]
[1741954840564,3.6485,1908.8,1908.5,0.00785916]
[1741954841067,4.69639,1908.8,1908.7,1.04791]
[1741954842559,1.04792,1908.7,1908.6,1.04793]
[1741954842760,4.6314,1908.7,1908.6,1.04793]
[1741954842959,2.294,1908.8,1908.7,1.04791]
[1741954843159,5.65042,1908.9,1908.5,2.62791916]
[1741954843160,3.8895,1908.9,1908.5,2.62791916]
[1741954843361,3.2078,1908.9,1908.8,1.04786]
[1741954843867,4.6314,1908.9,1908.8,1.04786]
[1741954844263,4.6314,1908.9,1908.7,0.7175]
[1741954844461,5.67924,1908.9,1908.8,1.04786]
[1741954844858,4.6314,1908.9,1908.8,1.04786]
[1741954845271,3.2078,1908.9,1908.8,1.04786]
[1741954845465,3.2078,1908.9,1908.8,1.74166]
[1741954846966,3.8769,1909.4,1908.8,3.9016]
[1741954847172,5.4958,1909.4,1908.9,2.61951]
[1741954847470,1.04766,1909.2,1909.1,1.04766]
[1741954849070,1.04764,1909.2,1909.1,1.04764]
[1741954849271,2.46482,1909.3,1909.2,1.04764]
[1741954849468,1.4172,1909.3,1908.9,2.61951]
[1741954850168,1.4172,1909.3,1909.1,1.04764]
[1741954850369,2.46478,1909.3,1909.2,2.43894]
[1741954850965,2.46478,1909.3,1909.2,1.3913]
[1741954851370,1.04786,1908.8,1908.7,0.7175]
[1741954852466,3.2078,1908.9,1908.2,9.1858]
[1741954852662,1.04791,1908.7,1908.6,1.76462]
[1741954852859,1.04791,1908.7,1908.6,2.0965]
[1741954853167,4.25571,1908.7,1908.6,1.3798]
[1741954853471,4.97071,1908.7,1908.6,1.3798]
[1741954853673,6.34351,1908.7,1908.6,1.3798]
[1741954854573,1.04797,1908.6,1908.5,0.00785916]
[1741954854767,2.40877,1908.6,1908.5,0.00785916]
[1741954856670,4.25571,1908.7,1908.6,1.04797]
[1741954856868,1.04797,1908.6,1908.5,2.38006916]
[1741954857172,1.04797,1908.6,1908.5,1.33205916]
[1741954857377,2.40877,1908.6,1908.5,1.33205916]
[1741954857573,6.31477,1908.6,1908.5,1.33205916]
[1741954858073,6.40097984,1908.6,1908.5,1.33205916]
[1741954858268,6.40097975,1908.6,1908.5,1.33205916]
[1741954858468,6.31477,1908.6,1908.5,1.33205916]
[1741954859174,6.40097966,1908.6,1908.5,1.33205916]
[1741954860068,6.40098005,1908.6,1908.5,1.33205916]
[1741954860269,6.40098005,1908.6,1908.5,0.00785916]
[1741954860466,1.04808,1908.4,1908.3,1.3856]
[1741954860670,6.54388,1908.4,1908.3,1.3856]
[1741954861079,6.54388,1908.4,1907.9,0.7092]
[1741954861080,1.0483,1908.0,1907.9,0.7092]
[1741954861373,3.2078,1908.0,1907.8,0.7061]
[1741954861572,1.04835,1907.9,1907.8,1.75451]
[1741954861877,3.2078,1908.0,1907.8,1.75451]
[1741954862078,3.2078,1908.0,1907.8,0.7061]
[1741954862276,2.29885916,1908.1,1907.8,0.7061]
[1741954862571,1.0483,1908.0,1907.9,1.3117]
[1741954862776,4.2561,1908.0,1907.9,1.3117]
[1741954863080,2.4606,1908.0,1907.9,1.3117]
[1741954863277,5.6684,1908.0,1907.9,1.3117]
[1741954863578,3.2078,1908.0,1907.9,2.36005]
[1741954863780,4.2561,1908.0,1907.9,2.36005]
[1741954864278,3.2078,1908.0,1907.9,2.36005]
[1741954864673,0.00785916,1908.1,1908.0,1.0483]
[1741954864873,1.05609916,1908.1,1908.0,3.0834]
[1741954865078,0.00785916,1908.1,1908.0,3.0834]
[1741954868474,0.00785916,1908.1,1908.0,6.2912]
[1741954868681,1.04807,1908.5,1908.4,1.04802]
[1741954868880,3.2078,1908.8,1908.1,1.3123]
[1741954869182,3.2078,1908.8,1908.5,1.04797]
[1741954869183,1.048,1908.6,1908.5,1.04797]
[1741954869780,1.3743,1908.7,1908.5,1.3123]
[1741954869977,1.04794,1908.7,1908.6,1.04797]
[1741954870473,7.582,1908.8,1908.5,1.3123]
[1741954870674,8.62992,1908.8,1908.7,1.04791]
[1741954870972,7.582,1908.8,1908.5,1.3123]
[1741954871177,2.45897,1908.7,1908.6,1.04793]
[1741954871681,2.45891,1908.7,1908.6,1.04793]
[1741954871879,3.2078,1908.8,1908.7,1.04791]
[1741954872181,4.25566,1908.8,1908.7,2.49521]
[1741954873783,3.2078,1908.8,1908.7,2.49521]
[1741954874281,4.25566,1908.8,1908.7,2.49521]
[1741954874678,1.04786,1908.8,1908.7,2.49521]
[1741954875276,0.7066,1909.1,1908.7,4.06706]
[1741954875480,1.13398495,1909.0,1908.9,1.04777]
[1741954875682,1.0478,1909.0,1908.9,2.45277]
[1741954875884,3.2078,1909.2,1908.9,1.405]
[1741954876185,1.04772,1909.1,1909.0,2.43129]
[1741954876486,2.37962,1909.1,1909.0,1.3836]
[1741954877186,2.46580287,1909.1,1909.0,1.3836]
[1741954877983,1.0478,1908.9,1908.8,0.6841]
[1741954878176,1.04786,1908.8,1908.7,0.00785916]
[1741954878383,2.37976,1908.8,1908.7,0.00785916]
[1741954878686,2.37976,1908.8,1908.7,1.05576916]
[1741954879088,2.37976,1908.8,1908.7,0.00785916]
[1741954879683,2.37976,1908.8,1908.7,1.36495916]
[1741954880880,1.3319,1908.8,1908.7,1.36495916]
[1741954881081,2.37976,1908.8,1908.7,2.41286916]
[1741954881682,1.04786,1908.8,1908.7,1.36495916]
[1741954881884,3.2078,1908.9,1908.7,1.36495916]
[1741954882086,0.65460103,1909.0,1908.7,1.36495916]
[1741954882087,1.04786,1908.8,1908.7,1.36495916]
[1741954882386,2.39626,1908.8,1908.7,1.36495916]
[1741954882777,5.60406,1908.8,1908.7,1.36495916]
[1741954882980,1.04786,1908.8,1908.7,2.41286916]
[1741954883183,1.04786,1908.8,1908.7,1.36495916]
[1741954883384,4.25566,1908.8,1908.7,1.36495916]
[1741954883586,5.60406,1908.8,1908.7,1.36495916]
[1741954884591,5.69026082,1908.8,1908.7,1.36495916]
[1741954885687,5.60406,1908.8,1908.7,1.36495916]
[1741954885886,3.2078,1908.8,1908.7,2.41286916]
[1741954886189,4.25566,1908.8,1908.7,2.41286916]
[1741954886385,4.25566,1908.8,1908.7,1.36495916]
[1741954886586,1.04786,1908.8,1908.7,1.36495916]
[1741954887289,1.04786,1908.8,1908.7,2.02965916]
[1741954887492,2.39636,1908.8,1908.7,2.02965916]
[1741954888884,2.39636,1908.8,1908.7,3.07756916]
[1741954889093,2.39636,1908.8,1908.7,2.02965916]
[1741954890491,2.39636,1908.8,1908.7,3.07756916]
[1741954890693,1.04782,1908.9,1908.8,1.04783]
[1741954890883,1.04782,1908.9,1908.8,2.1172]
[1741954891085,2.47962,1908.9,1908.8,3.16506]
[1741954891388,1.04774,1909.1,1909.0,1.04775]
[1741954892086,1.04774,1909.1,1909.0,1.70385]
[1741954892284,1.04774,1909.1,1909.0,0.6561]
[1741954892789,2.44504,1909.1,1909.0,2.1097]
[1741954894186,2.44504,1909.1,1909.0,3.15745]
[1741954894588,2.44504,1909.1,1909.0,2.1097]
[1741954897892,2.44504,1909.1,1909.0,3.15745]
[1741954898195,1.3973,1909.1,1909.0,3.15745]
[1741954898495,4.25549,1909.2,1909.1,1.04769]
[1741954898691,4.5872,1909.2,1909.1,1.3393]
[1741954898895,5.63484,1909.2,1909.1,2.38699]
[1741954899097,4.25544,1909.2,1909.1,2.38699]
[1741954903096,1.04758,1909.3,1909.2,1.04764]
[1741954903297,1.04758,1909.3,1909.2,3.18374]
[1741954903497,5.62918,1909.4,1909.3,1.04758]
[1741954903699,5.62918,1909.4,1909.3,3.04318]
[1741954904701,4.25538,1909.4,1909.3,3.04318]
[1741954905810,4.25538,1909.4,1909.3,1.9956]
[1741954906106,4.25538,1909.4,1909.3,3.04318]
[1741954906502,4.25538,1909.4,1909.3,1.9956]
[1741954906799,4.25538,1909.4,1909.3,1.3138]
[1741954907005,4.34155101,1909.4,1909.3,1.3138]
[1741954908600,4.25538,1909.4,1909.3,1.3138]
[1741954908904,4.34155065,1909.4,1909.3,1.3138]
[1741954909106,6.65855065,1909.4,1909.3,1.3138]
[1741954909305,1.04764,1909.2,1909.1,1.04765]
[1741954910107,1.04769,1909.1,1909.0,8.4048]
[1741954910307,1.04769,1909.1,1909.0,7.3571]
[1741954910606,1.04769,1909.1,1909.0,8.40485]
[1741954910806,2.43699,1909.1,1909.0,8.40485]
[1741954911209,2.43699,1909.1,1909.0,5.978]
[1741954911915,1.3893,1909.1,1908.9,1.3457]
[1741954912104,2.43705,1909.0,1908.9,1.3457]
[1741954912812,5.64485,1909.0,1908.9,1.3457]
[1741954913203,6.32945,1909.0,1908.9,1.3457]
[1741954915110,5.2817,1909.0,1908.7,0.00785916]
[1741954915313,1.04786,1908.8,1908.7,1.34245916]
[1741954915511,4.25566,1908.8,1908.7,1.34245916]
[1741954915911,4.97206,1908.8,1908.7,1.34245916]
[1741954917311,4.97206,1908.8,1908.7,2.06515916]
[1741954918110,4.97206,1908.8,1908.7,1.34245916]
[1741954919916,4.97206,1908.8,1908.7,2.39036916]
[1741954920115,4.97206,1908.8,1908.7,1.34245916]
[1741954920810,3.2078,1908.8,1908.7,1.34245916]
[1741954921014,4.25566,1908.8,1908.7,1.34245916]
[1741954921215,4.25566,1908.8,1908.7,2.39036916]
[1741954921421,4.25566,1908.8,1908.7,1.34245916]
[1741954922714,1.04786,1908.8,1908.7,2.39036916]
[1741954923114,1.04786,1908.8,1908.7,1.34245916]
[1741954923308,2.44066,1908.8,1908.7,1.34245916]
[1741954925612,5.64846,1908.8,1908.7,0.00785916]
[1741954925812,1.04808,1908.4,1908.3,0.6703]
[1741954926023,1.04808,1908.4,1908.3,1.71843]
[1741954926317,2.62006,1908.5,1908.0,1.04825]
[1741954926522,1.04824,1908.1,1908.0,1.75965]
[1741954926918,3.8801,1908.3,1908.0,0.7114]
[1741954927221,1.04824,1908.1,1908.0,3.21575]
[1741954927525,1.37225916,1908.2,1907.9,0.00785916]
[1741954927721,4.2561,1908.0,1907.9,1.45005916]
[1741954927915,6.5611,1908.0,1907.9,0.00785916]
[1741954928115,1.04852,1907.6,1907.5,2.1536]
[1741954928316,1.04868,1907.3,1907.2,3.2078]
[1741954928523,1.04871,1907.3,1907.1,1.46805103]
[1741954928920,1.04871,1907.3,1907.1,1.04876]
[1741954929517,1.04868,1907.3,1907.2,1.4422]
[1741954929924,1.436,1907.3,1907.2,1.4422]
[1741954930121,2.305,1907.4,1907.3,1.04868]
[1741954930327,3.35366,1907.4,1907.2,2.49092]
[1741954930625,1.04868,1907.3,1907.2,1.4422]
[1741954931022,4.74686,1907.4,1907.2,2.49092]
[1741954931526,1.04868,1907.3,1907.2,1.4422]
[1741954932427,3.6982,1907.4,1907.2,2.4909]
[1741954932627,4.74685,1907.4,1907.2,2.4909]
[1741954933031,3.6982,1907.4,1907.2,2.4909]
[1741954933335,1.04868,1907.3,1907.2,2.4909]
[1741954933632,4.74685,1907.4,1907.2,2.4909]
[1741954933926,2.301,1907.7,1907.3,2.62171]
[1741954934129,1.04854,1907.6,1907.5,1.04857]
[1741954934335,1.04854,1907.6,1907.5,2.49967]
[1741954935338,3.34948,1907.7,1907.6,1.04852]
[1741954935539,2.301,1907.7,1907.6,1.04852]
[1741954935729,2.301,1907.7,1907.5,1.4511]
[1741954935730,4.25619,1907.9,1907.5,1.4511]
[1741954935935,3.2078,1907.9,1907.7,1.04844]
[1741954936135,3.2078,1907.9,1907.8,1.04841]
[1741954936336,3.2078,1907.9,1907.4,6.50122]
[1741954936638,1.04838,1907.9,1907.8,1.0484]
[1741954936935,4.617,1908.0,1907.7,1.04842]
[1741954937138,1.04841,1907.8,1907.7,1.04842]
[1741954937634,4.617,1908.0,1907.8,1.04839]
[1741954937828,0.7096,1908.1,1907.6,5.82909]
[1741954937829,3.2078,1908.1,1907.6,5.82909]
[1741954938034,1.3627,1908.1,1907.7,0.6643]
[1741954938236,1.04835,1908.0,1907.7,0.6643]
[1741954938434,2.30685916,1908.2,1907.8,3.2078]
[1741954938734,0.00785916,1908.2,1908.1,1.04824]
[1741954938938,0.00785916,1908.2,1908.1,4.25604]
[1741954939138,0.00785916,1908.2,1908.1,1.04824]
[1741954939537,0.00785916,1908.2,1908.1,1.75924]
[1741954939835,2.298,1908.7,1908.2,2.62042]
[1741954940041,1.04801,1908.6,1908.5,1.048]
[1741954940540,3.34595,1908.7,1908.6,1.04797]
[1741954941232,2.298,1908.7,1908.6,1.04797]
[1741954941829,0.00785916,1908.8,1908.7,1.04791]
[1741954942034,1.05571916,1908.8,1908.7,1.04791]
[1741954942236,0.00785916,1908.8,1908.7,1.04791]
[1741954944741,0.00785916,1908.8,1908.7,10.23371]
[1741954945136,1.04768,1909.2,1909.1,1.04769]
[1741954945842,1.04768,1909.2,1909.1,1.04768]
[1741954946440,2.49328,1909.2,1909.1,1.04768]
[1741954947442,2.49329,1909.2,1909.0,1.05556916]
[1741954947635,2.49329,1909.2,1909.0,0.00785916]
[1741954947835,2.49329,1909.2,1909.1,1.04769]
[1741954948238,1.4456,1909.2,1909.1,1.04769]
[1741954948442,3.2078,1909.4,1909.0,0.00785916]
[1741954948637,5.70097,1909.4,1909.2,1.04759]
[1741954949031,4.6534,1909.4,1909.2,1.04759]
[1741954949238,1.04758,1909.3,1909.2,1.04759]
[1741954949644,5.70097,1909.4,1909.0,1.35285916]
[1741954949836,5.70097,1909.4,1909.0,3.97217916]
[1741954950043,1.04758,1909.3,1909.2,1.04759]
[1741954950442,1.04764,1909.2,1909.1,2.48076]
[1741954950637,1.4428,1909.2,1909.1,2.48076]
[1741954951348,3.2078,1909.4,1909.1,1.4331]
[1741954951640,5.69818,1909.4,1909.2,2.4807]
[1741954952143,4.6506,1909.4,1909.2,2.4807]
[1741954952443,5.69818,1909.4,1909.2,2.4807]
[1741954952939,5.69818,1909.4,1909.2,1.4331]
[1741954953439,1.04758,1909.3,1909.2,2.4807]
[1741954953745,4.6506,1909.4,1909.2,1.4331]
[1741954953944,5.69815,1909.4,1909.3,1.04758]
[1741954954241,2.49035,1909.4,1909.3,1.04758]
[1741954954432,1.4428,1909.4,1909.3,1.04758]
[1741954954629,3.9109,1909.6,1909.2,1.4331]
[1741954954835,1.04748,1909.5,1909.4,1.04748]
[1741954955133,1.04754,1909.4,1909.3,1.04753]
[1741954955530,1.4528,1909.5,1909.2,1.4331]
[1741954955744,2.50031,1909.5,1909.4,1.04753]
[1741954956130,1.4528,1909.5,1909.2,1.4331]
[1741954956338,1.04755,1909.4,1909.3,1.04754]
[1741954957644,1.4528,1909.5,1909.2,1.4331]
[1741954957847,1.04755,1909.4,1909.3,1.04753]
[1741954959244,1.4528,1909.5,1909.2,1.4331]
[1741954959447,2.5003,1909.5,1909.4,1.04753]
[1741954960345,28.50236,1909.8,1909.5,1.04747]
[1741954960548,0.08615259,1909.7,1909.6,1.04742]
[1741954960849,1.04736,1909.7,1909.6,1.04742]
[1741954961050,2.44756,1909.7,1909.6,1.04742]
[1741954961344,1.4002,1909.7,1909.4,1.9901]
[1741954961550,1.04745,1909.6,1909.5,1.04743]
[1741954961849,1.4002,1909.7,1909.5,1.4468]
[1741954962047,1.04742,1909.6,1909.5,2.49423]
[1741954963047,1.04742,1909.6,1909.5,1.4468]
[1741954963248,1.04742,1909.6,1909.5,2.49427]
[1741954963841,1.4002,1909.7,1909.3,5.978]
[1741954964151,1.04746,1909.6,1909.5,1.04747]
[1741954964337,1.0474,1909.7,1909.6,1.0474]
[1741954964546,2.4553,1909.7,1909.6,1.0474]
[1741954964740,1.04743,1909.6,1909.5,1.04744]
[1741954965342,1.4079,1909.7,1909.4,1.4468]
[1741954965550,2.45537,1909.5,1909.4,2.49428]
[1741954966948,2.45537,1909.5,1909.4,1.4468]
[1741954967150,2.45537,1909.5,1909.4,2.49433]
[1741954967846,2.45537,1909.5,1909.4,1.4468]
[1741954968057,1.04764,1909.2,1909.1,5.978]
[1741954968251,4.25544,1909.2,1909.1,1.423]
[1741954969041,1.04763,1909.3,1909.1,1.423]
[1741954969247,1.04763,1909.3,1909.2,1.04762]
[1741954969549,2.49553,1909.3,1909.2,1.04762]
[1741954970860,1.4479,1909.3,1909.2,1.04762]
[1741954971047,5.68226,1909.4,1909.3,1.04758]
[1741954971248,4.25536,1909.4,1909.3,2.38958]
[1741954971454,4.25533,1909.4,1909.3,2.38958]
[1741954972850,5.68223,1909.4,1909.3,2.38958]